bitfinex/quotes_ETHUSD_20250129
["timestamp","ask_amount","ask_price","bid_price","bid_amount"]
[1738140594136,3.17412,3150.5,3150.2,1.28144952]
[1738140594339,3.17412,3150.5,3150.2,4.28144952]
[1738140594559,3.17395,3150.7,3150.2,3.73144952]
[1738140594844,3.17397,3150.7,3150.2,3.73144952]
[1738140595044,3.17397,3150.7,3150.2,6.90582952]
[1738140595247,6.34747,3150.9,3150.4,0.55]
[1738140595669,6.34747,3150.9,3150.5,0.10376712]
[1738140596059,4.00147,3151.0,3150.4,3.72419]
[1738140596259,3.17372,3150.9,3150.4,3.72419]
[1738140596591,3.17372,3150.9,3150.5,0.1041088]
[1738140596956,3.17372,3150.9,3150.4,3.72419]
[1738140597156,3.17372,3150.9,3150.6,0.1041088]
[1738140597358,3.17386,3150.8,3150.3,0.55]
[1738140597560,3.17395,3150.7,3150.3,2.21554145]
[1738140598774,3.17395,3150.7,3150.3,7.59554145]
[1738140599976,3.174,3150.6,3150.3,7.59554145]
[1738140600182,3.17374,3150.9,3150.3,7.59554145]
[1738140600354,3.17384,3150.8,3150.3,10.76979145]
[1738140600551,3.17384,3150.8,3150.5,0.55]
[1738140600752,3.17384,3150.8,3150.3,5.38]
[1738140601081,6.34809,3150.6,3150.3,5.38]
[1738140601280,3.174,3150.6,3150.3,5.38]
[1738140601488,3.17382,3150.8,3150.4,0.55]
[1738140601981,3.17365,3151.0,3150.5,0.8247]
[1738140602171,3.1737,3150.9,3150.5,0.8247]
[1738140603248,0.7519,3151.2,3150.5,0.8247]
[1738140603547,3.1739,3150.7,3150.5,0.8247]
[1738140603979,3.1739,3150.7,3150.4,0.55]
[1738140604352,3.1739,3150.7,3150.3,6.1799]
[1738140604558,1.20860918,3151.2,3150.3,5.38]
[1738140604559,3.1742,3150.4,3150.3,5.38]
[1738140604862,0.7986,3150.6,3150.1,3.0]
[1738140604863,3.1743,3150.3,3150.1,3.0]
[1738140605277,3.1743,3150.3,3150.0,5.38]
[1738140605479,3.1745,3150.1,3150.0,5.38]
[1738140605854,4.0053,3150.1,3150.0,5.38]
[1738140606063,0.8308,3150.1,3150.0,5.38]
[1738140606291,3.1744,3150.2,3150.0,5.38]
[1738140606988,3.1745,3150.1,3150.0,5.38]
[1738140608852,3.9275,3150.1,3150.0,5.47751219]
[1738140610653,0.753,3150.1,3150.0,0.09751219]
[1738140610856,3.1744,3150.2,3149.8,0.55]
[1738140611165,3.1744,3150.2,3149.9,0.09751219]
[1738140611679,6.3489,3150.2,3149.9,0.09751219]
[1738140611879,3.1744,3150.2,3149.9,0.09751219]
[1738140612210,3.17451,3150.1,3149.9,0.09751219]
[1738140612703,3.1744,3150.2,3149.9,0.09751219]
[1738140613052,3.17454,3150.1,3149.9,0.09751219]
[1738140613489,3.1744,3150.2,3149.9,0.09751219]
[1738140613695,3.1746,3150.0,3149.9,0.09751219]
[1738140613881,3.1746,3150.0,3149.6,3.7838]
[1738140614076,6.34889,3150.2,3149.7,0.09751219]
[1738140614283,3.79390562,3150.4,3149.8,3.72476]
[1738140614677,3.79390562,3150.4,3149.9,0.09751219]
[1738140614989,3.17447,3150.2,3149.9,0.09751219]
[1738140615160,3.17451,3150.1,3149.9,0.09751219]
[1738140617088,3.17447,3150.2,3149.9,0.09751219]
[1738140617701,6.34896,3150.2,3149.9,0.09751219]
[1738140617995,3.17457,3150.1,3149.9,0.09751219]
[1738140618364,3.1746,3150.0,3149.9,0.09751219]
[1738140618565,3.9571,3150.0,3149.9,0.09751219]
[1738140618890,3.17471,3149.9,3149.7,5.38]
[1738140619397,3.1745,3150.1,3149.7,5.38]
[1738140619591,3.1745,3150.1,3149.7,6.44414753]
[1738140619787,3.1745,3150.1,3149.8,0.8117]
[1738140621274,3.17462,3150.0,3149.7,6.44414753]
[1738140622072,3.1744,3150.2,3149.7,9.61904753]
[1738140623091,0.7903,3150.3,3149.7,9.61904753]
[1738140623299,0.8129,3150.6,3150.2,3.17437]
[1738140623517,3.1739,3150.7,3150.2,3.17437]
[1738140623875,3.17404,3150.6,3150.1,3.17444]
[1738140624398,3.17404,3150.6,3150.2,0.09816685]
[1738140627213,3.17386,3150.8,3150.4,0.814]
[1738140627709,3.17395,3150.7,3150.4,0.814]
[1738140627912,3.17395,3150.7,3150.5,0.09816685]
[1738140628417,3.17395,3150.7,3150.6,0.09816685]
[1738140628780,3.17389,3150.7,3150.4,0.814]
[1738140629119,3.17386,3150.8,3150.4,0.814]
[1738140629283,3.17401,3150.6,3150.5,0.09816685]
[1738140629483,3.17401,3150.6,3150.4,0.814]
[1738140629715,3.17401,3150.6,3150.5,0.09816685]
[1738140629915,3.17401,3150.6,3150.4,0.814]
[1738140630219,3.17401,3150.6,3150.5,0.09816685]
[1738140630516,3.17401,3150.6,3150.4,0.814]
[1738140630919,3.17401,3150.6,3150.5,0.09816685]
[1738140631660,3.1743,3150.3,3150.2,5.38]
[1738140632413,3.9322,3150.3,3150.2,5.38]
[1738140633895,3.1743,3150.3,3150.2,5.38]
[1738140634400,3.17443,3150.2,3149.8,3.55]
[1738140635495,3.17424,3150.4,3149.8,6.72474]
[1738140635805,3.1743,3150.3,3149.9,1.527963]
[1738140636525,3.1743,3150.3,3150.0,0.7936]
[1738140636726,0.63860952,3150.2,3150.0,0.7936]
[1738140636929,3.1742,3150.4,3150.0,0.7936]
[1738140637335,3.1744,3150.3,3150.0,0.55]
[1738140637510,3.17453,3150.1,3149.7,6.1736]
[1738140637826,3.17453,3150.1,3149.7,7.108455]
[1738140638029,3.94919,3150.6,3149.7,7.108455]
[1738140638205,3.1746,3150.0,3149.7,6.1736]
[1738140638594,3.1744,3150.2,3149.7,6.1736]
[1738140638795,3.17446,3150.2,3149.7,6.1736]
[1738140638996,3.17446,3150.2,3149.8,0.13051694]
[1738140639198,6.34855,3150.4,3149.8,3.85528694]
[1738140639419,6.34855,3150.4,3149.9,1.00288869]
[1738140639615,6.34855,3150.4,3149.9,1.13346936]
[1738140639815,3.17426,3150.4,3149.9,1.13346936]
[1738140640029,6.34895,3150.2,3149.9,0.13058067]
[1738140640197,3.17447,3150.2,3149.9,0.13058067]
[1738140640393,3.1745,3150.1,3149.9,0.13058067]
[1738140640793,3.1745,3150.1,3149.7,9.3485]
[1738140640997,3.1745,3150.1,3150.0,0.13058067]
[1738140641234,3.1745,3150.1,3149.7,9.3485]
[1738140641410,3.1745,3150.1,3150.0,0.13058067]
[1738140642032,3.1745,3150.1,3149.7,10.91856]
[1738140642231,3.1745,3150.1,3150.0,0.13058067]
[1738140642407,3.1745,3150.1,3149.7,6.1736]
[1738140642613,3.1745,3150.1,3150.0,0.13058067]
[1738140642803,3.1745,3150.1,3149.7,6.1736]
[1738140643003,3.1745,3150.1,3150.0,0.13058067]
[1738140643204,3.1745,3150.1,3149.7,6.1736]
[1738140643404,3.1745,3150.1,3150.0,0.13058067]
[1738140643605,3.1745,3150.1,3149.7,6.1736]
[1738140643806,3.1745,3150.1,3150.0,0.13058067]
[1738140644007,3.1745,3150.1,3149.7,6.1736]
[1738140644213,3.1745,3150.1,3149.7,7.426158]
[1738140644405,3.1745,3150.1,3149.8,0.13058067]
[1738140644806,3.1745,3150.1,3149.7,7.426158]
[1738140645046,3.1745,3150.1,3149.9,0.13076607]
[1738140645231,3.1745,3150.1,3149.7,7.426158]
[1738140645406,3.1745,3150.1,3150.0,0.13076607]
[1738140645740,3.1745,3150.1,3149.7,6.1736]
[1738140646037,3.17447,3150.2,3149.8,0.13076607]
[1738140646339,3.17461,3150.0,3149.7,6.1736]
[1738140646707,3.17461,3150.0,3149.8,0.13076607]
[1738140647130,3.17461,3150.0,3149.7,5.38]
[1738140647302,3.17461,3150.0,3149.8,0.13076607]
[1738140647504,3.17461,3150.0,3149.7,5.38]
[1738140647941,3.17461,3150.0,3149.8,0.13076607]
[1738140648141,3.17461,3150.0,3149.7,5.38]
[1738140648550,3.17461,3150.0,3149.8,0.13076607]
[1738140648707,3.17461,3150.0,3149.7,5.38]
[1738140648902,3.17461,3150.0,3149.8,0.13076607]
[1738140649222,3.17461,3150.0,3149.7,5.38]
[1738140649410,3.17461,3150.0,3149.9,0.13076607]
[1738140649609,3.17461,3150.0,3149.7,5.38]
[1738140649842,3.1745,3150.1,3149.7,6.951311]
[1738140650046,3.1745,3150.1,3149.8,0.13076607]
[1738140650547,3.1745,3150.1,3149.9,0.13076607]
[1738140650842,3.1746,3150.0,3149.7,6.951311]
[1738140654247,3.1746,3150.0,3149.8,0.13076607]
[1738140654548,3.1746,3150.0,3149.7,6.951311]
[1738140654728,3.1746,3150.0,3149.8,0.1308124]
[1738140654926,3.1746,3150.0,3149.7,6.951311]
[1738140655147,3.1746,3150.0,3149.8,0.1308124]
[1738140655311,3.1746,3150.0,3149.7,6.951311]
[1738140655510,3.1746,3150.0,3149.8,0.1308124]
[1738140655715,3.1746,3150.0,3149.7,6.951311]
[1738140655937,3.1746,3150.0,3149.8,0.1308124]
[1738140656147,3.81602955,3149.9,3149.7,5.373417]
[1738140656348,3.81602955,3149.9,3149.8,0.1308124]
[1738140656548,3.81602955,3149.9,3149.7,5.373417]
[1738140656852,3.1748,3149.8,3149.7,5.373417]
[1738140657537,3.81604955,3149.9,3149.7,5.373417]
[1738140657848,3.1748,3149.8,3149.7,5.373417]
[1738140658150,3.1748,3149.8,3149.4,3.0]
[1738140659249,0.64132955,3149.9,3149.5,0.55]
[1738140659452,3.81607955,3149.9,3149.5,0.55]
[1738140659755,3.17487,3149.8,3149.4,3.0]
[1738140659949,0.64132955,3149.9,3149.5,0.55]
[1738140660253,0.64132955,3149.9,3149.6,3.0]
[1738140661449,0.64132955,3149.9,3149.6,6.175]
[1738140661629,0.64132955,3149.9,3149.8,0.7937]
[1738140661828,0.64132955,3149.9,3149.7,3.17488]
[1738140665165,3.94434,3150.4,3149.8,4.52012]
[1738140665348,0.8169,3150.7,3150.0,0.55]
[1738140665525,3.17406,3150.6,3150.0,0.55]
[1738140665856,3.17425,3150.4,3150.0,0.55]
[1738140666059,3.17425,3150.4,3150.0,3.726]
[1738140666638,1.44493217,3150.6,3149.8,6.168817]
[1738140666833,3.17453,3150.1,3149.8,5.373417]
[1738140668349,3.17462,3150.0,3149.8,5.373417]
[1738140668554,3.92862,3150.0,3149.8,5.373417]
[1738140668750,0.754,3150.0,3149.8,5.373417]
[1738140668933,3.1747,3149.9,3149.8,5.373417]
[1738140669636,3.1747,3149.9,3149.5,3.55]
[1738140672070,6.34911,3150.1,3149.5,6.72509]
[1738140672237,3.17453,3150.1,3149.7,0.55]
[1738140672572,3.17392,3150.7,3149.9,3.72462]
[1738140672573,3.17418,3150.5,3149.9,3.72462]
[1738140672757,3.17418,3150.5,3149.9,10.07525]
[1738140673154,3.17418,3150.5,3149.9,15.448667]
[1738140674252,3.17418,3150.5,3149.9,12.272667]
[1738140674435,3.17418,3150.5,3149.9,9.098037]
[1738140674969,3.17422,3150.4,3149.9,9.098037]
[1738140675176,3.17422,3150.4,3149.9,12.274037]
[1738140675468,3.1742,3150.4,3149.9,8.549417]
[1738140675634,0.823,3150.3,3149.9,5.373417]
[1738140675838,3.1746,3150.0,3149.9,5.373417]
[1738140678282,3.17435,3150.3,3149.9,6.149117]
[1738140678868,3.17416,3150.5,3149.9,6.149117]
[1738140679168,3.17416,3150.5,3150.0,0.55]
[1738140679371,3.17402,3150.6,3150.0,4.7119147]
[1738140680753,3.1742,3150.4,3149.9,6.149117]
[1738140680957,3.17433,3150.3,3149.9,6.149117]
[1738140681476,3.17009124,3150.3,3149.9,6.149117]
[1738140683678,3.17009124,3150.3,3149.9,6.09565832]
[1738140684061,3.17009124,3150.3,3150.0,0.13074005]
[1738140686286,3.9467,3150.4,3150.0,0.13074005]
[1738140686586,3.97808,3150.6,3150.0,3.71097176]
[1738140686886,3.9748,3150.2,3150.0,0.13074005]
[1738140687191,3.1745,3150.1,3150.0,0.13074005]
[1738140687356,5.62911776,3150.1,3149.6,5.31995832]
[1738140687558,3.963,3149.7,3149.6,5.31995832]
[1738140687887,3.1749,3149.7,3149.5,0.24936508]
[1738140689892,3.94052,3149.9,3149.5,0.24936508]
[1738140690058,3.17481,3149.8,3149.5,0.24936508]
[1738140690393,3.175,3149.6,3149.5,0.24936508]
[1738140692055,3.9345,3149.6,3149.5,0.24936508]
[1738140692264,4.89090178,3149.6,3149.5,0.24936508]
[1738140694394,5.52740609,3149.6,3149.5,0.24936508]
[1738140695469,8.52740609,3149.6,3149.5,5.08e-06]
[1738140695796,6.35254,3148.4,3148.0,0.8134]
[1738140695998,3.17624,3148.4,3148.1,0.12647417]
[1738140696183,3.97936,3148.5,3148.0,0.8134]
[1738140696389,3.97936,3148.5,3148.1,0.12647417]
[1738140696390,3.17625,3148.4,3148.1,0.12647417]
[1738140696585,3.17625,3148.4,3148.0,4.4064983]
[1738140696785,0.8032,3148.5,3148.1,0.12647417]
[1738140696985,3.17608,3148.6,3148.0,10.7596783]
[1738140697297,3.17603,3148.6,3148.1,0.12647417]
[1738140697504,3.17603,3148.6,3148.1,1.42942625]
[1738140697687,3.17637,3148.3,3147.9,5.31995832]
[1738140698301,3.17637,3148.3,3148.0,0.12647417]
[1738140699803,3.17634,3148.3,3148.0,0.12647417]
[1738140700407,3.17623,3148.4,3148.0,0.12647417]
[1738140700702,3.17592,3148.7,3148.0,1.30667942]
[1738140700869,3.17592,3148.7,3148.2,0.8319]
[1738140701267,3.17592,3148.7,3148.3,0.1275583]
[1738140701503,3.1761,3148.6,3148.3,0.1275583]
[1738140701868,3.1761,3148.6,3148.0,3.93945]
[1738140702111,3.1761,3148.6,3148.4,0.1275583]
[1738140702313,3.891842,3148.6,3148.0,3.93945]
[1738140702598,3.1761,3148.6,3148.0,3.93945]
[1738140702799,3.17613,3148.5,3148.1,0.1282322]
[1738140703013,3.17613,3148.5,3148.0,3.9409]
[1738140703222,3.17633,3148.3,3148.1,0.1282322]
[1738140703510,3.17633,3148.3,3148.0,0.7629]
[1738140703713,3.17633,3148.3,3148.2,0.1281742]
[1738140704018,3.17633,3148.3,3148.0,0.7629]
[1738140704182,3.17633,3148.3,3148.1,0.128209]
[1738140704379,3.17633,3148.3,3148.0,0.7629]
[1738140704584,3.17633,3148.3,3148.1,0.128209]
[1738140704883,3.17633,3148.3,3148.0,0.7629]
[1738140705078,3.17633,3148.3,3148.2,0.128209]
[1738140705310,3.17633,3148.3,3148.0,0.7629]
[1738140705511,3.17633,3148.3,3148.2,0.128209]
[1738140705686,6.35272,3148.3,3148.0,0.7629]
[1738140705886,3.17633,3148.3,3148.2,0.128209]
[1738140706099,3.17633,3148.3,3148.0,0.7629]
[1738140706302,3.17633,3148.3,3148.2,0.128209]
[1738140706497,3.17646,3148.2,3147.9,5.31995832]
[1738140708717,6.35297,3148.2,3147.9,5.31995832]
[1738140708927,3.17652,3148.1,3147.9,5.31995832]
[1738140709127,3.17646,3148.2,3147.9,5.31995832]
[1738140710620,3.17646,3148.2,3147.6,5.31995832]
[1738140710921,3.17651,3148.1,3147.7,3.0]
[1738140711324,3.17646,3148.2,3147.7,3.0]
[1738140712317,3.17652,3148.1,3147.7,3.0]
[1738140714002,3.17652,3148.1,3147.8,0.12393124]
[1738140714204,0.62327305,3147.9,3147.7,3.0]
[1738140714496,0.62327305,3147.9,3147.8,0.95113124]
[1738140714703,3.17634,3148.3,3147.8,4.12795124]
[1738140715402,3.17634,3148.3,3147.8,7.30477124]
[1738140715592,3.17634,3148.3,3147.8,4.12795124]
[1738140717714,3.17622,3148.4,3147.9,3.17669]
[1738140718103,3.17622,3148.4,3148.0,0.1239486]
[1738140719612,3.17622,3148.4,3147.8,4.0357448]
[1738140719826,3.17632,3148.3,3147.9,0.1239486]
[1738140720530,3.17649,3148.2,3147.9,0.1239486]
[1738140722865,6.353,3148.2,3147.9,0.1239486]
[1738140723162,3.17651,3148.1,3147.9,0.1239486]
[1738140725533,3.17651,3148.1,3147.7,3.0]
[1738140725733,3.17651,3148.1,3148.0,0.12406819]
[1738140725926,3.17651,3148.1,3147.7,3.0]
[1738140726126,3.17651,3148.1,3148.0,0.12406819]
[1738140726326,3.17662,3148.0,3147.7,3.0]
[1738140727050,3.17701,3147.7,3147.4,0.783]
[1738140727425,3.17682,3147.8,3147.4,0.783]
[1738140727619,3.17667,3148.0,3147.4,3.96014]
[1738140727815,3.17667,3148.0,3147.5,0.783]
[1738140728246,3.17693,3147.7,3147.3,3.0]
[1738140728444,6.35393,3147.7,3147.2,0.783]
[1738140728656,3.17706,3147.6,3147.2,0.783]
[1738140728864,3.17706,3147.6,3147.3,0.12017216]
[1738140729227,6.35418,3147.6,3147.2,0.783]
[1738140729431,3.17719,3147.5,3147.3,0.12017216]
[1738140729736,3.17706,3147.6,3147.2,0.783]
[1738140729937,3.17706,3147.6,3147.4,0.11603694]
[1738140730175,3.17694,3147.7,3147.2,0.783]
[1738140730339,3.17694,3147.7,3147.5,0.11603694]
[1738140730541,3.17694,3147.7,3147.2,0.783]
[1738140730740,3.17694,3147.7,3147.6,0.11603694]
[1738140730944,3.17679,3147.9,3147.3,6.17732]
[1738140731123,3.17679,3147.9,3147.6,0.11603694]
[1738140731483,3.17682,3147.8,3147.7,0.11603694]
[1738140731832,3.17682,3147.8,3147.3,9.35632]
[1738140732031,3.17682,3147.8,3147.3,6.179]
[1738140732238,3.17682,3147.8,3147.4,0.11603694]
[1738140732561,0.7627,3148.1,3147.4,0.11603694]
[1738140732756,3.17695,3147.7,3147.4,0.11603694]
[1738140733158,3.17695,3147.7,3147.3,0.788]
[1738140733345,3.17695,3147.7,3147.5,0.11603694]
[1738140733554,3.17695,3147.7,3147.3,0.788]
[1738140733735,3.17695,3147.7,3147.6,0.11603694]
[1738140733941,3.17695,3147.7,3147.3,0.788]
[1738140734464,3.17695,3147.7,3147.4,0.11603694]
[1738140734632,3.17675,3147.9,3147.4,0.11603694]
[1738140734831,3.17684,3147.8,3147.4,0.11603694]
[1738140735846,3.17682,3147.8,3147.4,0.11603694]
[1738140736153,0.64072556,3147.7,3147.4,0.11603694]
[1738140738061,3.81770556,3147.7,3147.4,0.11603694]
[1738140738564,3.17712,3147.5,3147.4,0.11603694]
[1738140738940,6.3543,3147.5,3147.1,3.005]
[1738140739150,6.3543,3147.5,3147.4,0.11603694]
[1738140739353,3.17724,3147.4,3147.1,3.005]
[1738140739668,3.17728,3147.4,3147.1,3.005]
[1738140740268,3.97902,3147.2,3147.1,0.005]
[1738140740458,3.98152,3147.2,3147.1,0.005]
[1738140740661,6.43613776,3147.2,3147.1,0.005]
[1738140742275,9.43613776,3147.2,3147.1,0.005]
[1738140744354,9.43613776,3147.2,3147.1,1e-05]
[1738140744555,10.73710534,3147.2,3147.1,1e-05]
[1738140746274,11.37265395,3147.2,3147.1,1e-05]
[1738140748252,8.91803619,3147.2,3147.1,1e-05]
[1738140749480,3.81296861,3147.2,3147.1,1e-05]
[1738140749656,3.17742,3147.2,3147.1,1e-05]
[1738140749865,3.17742,3147.2,3147.1,0.10187213]
[1738140750653,3.17742,3147.2,3147.1,1e-05]
[1738140752466,3.17742,3147.2,3147.1,0.10187213]
[1738140752659,4.63797381,3147.2,3147.1,1e-05]
[1738140755685,3.17773,3146.9,3146.8,2.7e-06]
[1738140758392,3.17763,3147.0,3146.8,2.7e-06]
[1738140758591,3.17745,3147.2,3146.8,2.7e-06]
[1738140758959,3.17745,3147.2,3146.9,0.095494]
[1738140759191,3.17754,3147.1,3146.9,0.095494]
[1738140759390,3.17745,3147.2,3146.8,2.7e-06]
[1738140759594,3.17745,3147.2,3147.0,0.095494]
[1738140759771,3.17745,3147.2,3146.8,2.7e-06]
[1738140760461,3.17745,3147.2,3146.9,0.095494]
[1738140760657,0.6224193,3147.3,3146.8,3.1777627]
[1738140760866,0.6224193,3147.3,3147.0,3.99771]
[1738140761471,0.6224193,3147.3,3147.1,0.09515224]
[1738140761971,3.7997693,3147.3,3147.1,0.09515224]
[1738140762372,3.17742,3147.2,3147.1,0.09515224]
[1738140764411,0.6224193,3147.3,3147.1,0.09515224]
[1738140766868,3.17698,3147.7,3147.1,0.09515224]
[1738140766869,3.17709,3147.6,3147.1,0.09515224]
[1738140767024,0.64570509,3147.5,3147.1,0.50444946]
[1738140767379,3.177,3147.7,3147.1,3.68194946]
[1738140767929,3.177,3147.7,3147.2,3.17737]
[1738140768285,3.177,3147.7,3147.3,0.09474101]
[1738140768719,4.59569564,3147.9,3147.4,0.8124]
[1738140768720,6.98890564,3147.9,3147.4,0.8124]
[1738140768928,3.81209564,3147.9,3147.4,0.90714101]
[1738140769495,0.63533564,3147.9,3147.4,4.08429101]
[1738140771248,3.17678,3147.9,3147.4,4.08429101]
[1738140772206,3.17684,3147.8,3147.4,0.90290224]
[1738140774010,3.17672,3147.9,3147.4,4.08005224]
[1738140775105,3.17689,3147.8,3147.4,0.90290224]
[1738140778006,6.3538,3147.8,3147.4,0.90290224]
[1738140778236,3.17689,3147.8,3147.4,0.90290224]
[1738140778434,3.17692,3147.7,3147.4,0.90290224]
[1738140778634,3.17692,3147.7,3147.4,0.09474101]
[1738140778936,3.17692,3147.7,3147.3,0.55]
[1738140779129,3.17692,3147.7,3147.5,0.09429517]
[1738140779333,6.35352,3147.9,3147.5,0.09429517]
[1738140779646,3.17687,3147.8,3147.5,0.09429517]
[1738140779970,3.17687,3147.8,3147.3,3.72729]
[1738140780270,3.17682,3147.8,3147.3,0.55]
[1738140780567,3.17692,3147.7,3147.4,0.09429517]
[1738140781365,3.17712,3147.5,3147.4,0.09429517]
[1738140781664,3.17712,3147.5,3147.2,0.8264]
[1738140781900,3.17728,3147.4,3147.3,0.09432412]
[1738140782086,3.17728,3147.4,3146.9,8.91]
[1738140782289,3.17753,3147.1,3146.9,8.91]
[1738140782487,3.17753,3147.1,3147.0,0.09432412]
[1738140782642,3.93865,3147.5,3147.0,0.88792412]
[1738140782841,0.6464415,3147.4,3147.1,3.17749]
[1738140783287,0.6464415,3147.4,3147.2,3.27169412]
[1738140783585,0.6464415,3147.4,3147.2,0.09432412]
[1738140783885,3.17703,3147.6,3147.2,0.09432412]
[1738140784284,3.17714,3147.5,3147.2,0.09432412]
[1738140784587,3.17714,3147.5,3147.1,0.55]
[1738140784742,3.17714,3147.5,3147.3,0.09432412]
[1738140784936,3.17714,3147.5,3147.1,0.55]
[1738140785466,0.62777872,3147.6,3147.2,0.09432412]
[1738140785675,3.80479872,3147.6,3147.2,0.09432412]
[1738140786863,3.17714,3147.5,3147.2,0.09432412]
[1738140787063,3.17714,3147.5,3147.0,0.7936]
[1738140787064,3.17732,3147.3,3147.0,0.7936]
[1738140787238,3.17748,3147.2,3147.0,0.7936]
[1738140787438,3.17748,3147.2,3147.1,0.09432412]
[1738140791203,3.17738,3147.3,3147.1,0.09432412]
[1738140791843,3.94429,3147.5,3147.1,0.09432412]
[1738140792074,3.17731,3147.4,3147.1,0.09432412]
[1738140792688,0.7671,3147.5,3147.1,0.09432412]
[1738140792889,0.20930526,3147.4,3147.1,0.09432412]
[1738140793197,3.17734,3147.3,3147.1,0.09432412]
[1738140794362,3.17742,3147.2,3147.1,0.09432412]
[1738140794581,3.17742,3147.2,3146.8,0.7576027]
[1738140794790,0.20930526,3147.4,3147.1,0.09449782]
[1738140794991,0.20930526,3147.4,3146.8,3.9354127]
[1738140795189,3.94428,3147.5,3147.2,0.09449782]
[1738140795190,3.17734,3147.3,3147.2,0.09449782]
[1738140795678,3.17734,3147.3,3146.8,3.9354127]
[1738140795878,3.17734,3147.3,3146.9,0.09449782]
[1738140796077,3.17734,3147.3,3146.8,3.9354127]
[1738140796382,3.17734,3147.3,3146.9,0.09449782]
[1738140796697,3.17734,3147.3,3146.8,3.9354127]
[1738140796861,3.17744,3147.2,3146.8,0.7576027]
[1738140797063,3.17744,3147.2,3146.9,0.09449782]
[1738140797263,3.17734,3147.3,3146.8,0.7576027]
[1738140797510,3.17734,3147.3,3146.9,0.09449782]
[1738140797813,3.17734,3147.3,3146.8,0.7576027]
[1738140798116,0.63990025,3147.0,3146.8,0.7576027]
[1738140798298,3.17734,3147.3,3146.9,0.09449782]
[1738140798466,3.17734,3147.3,3146.8,0.7576027]
[1738140798665,3.17734,3147.3,3146.9,0.09449782]
[1738140798989,0.64371675,3147.2,3146.9,0.55]
[1738140799183,3.96718,3147.8,3147.1,0.8124]
[1738140799471,3.17693,3147.7,3147.2,3.17737]
[1738140799880,3.17693,3147.7,3147.3,0.09449782]
[1738140800085,3.17693,3147.7,3147.2,3.17737]
[1738140800282,3.17693,3147.7,3147.3,0.09449782]
[1738140800486,3.17703,3147.6,3147.1,0.8124]
[1738140800690,3.17703,3147.6,3147.1,3.9899]
[1738140800893,3.17703,3147.6,3147.2,0.09449782]
[1738140802478,3.17702,3147.6,3147.2,0.09449782]
[1738140802786,3.17713,3147.5,3147.2,0.09449782]
[1738140802981,0.8128,3147.4,3147.2,0.09449782]
[1738140803175,3.17732,3147.3,3147.2,0.09449782]
[1738140803374,3.17732,3147.3,3146.9,0.7728]
[1738140803585,3.17732,3147.3,3147.2,0.09466572]
[1738140803783,3.17732,3147.3,3146.9,0.7728]
[1738140804098,3.17732,3147.3,3147.2,0.09466572]
[1738140804601,3.17732,3147.3,3146.9,0.7728]
[1738140804777,3.17732,3147.3,3147.2,0.09466572]
[1738140804977,3.17732,3147.3,3146.9,0.7728]
[1738140805187,3.17732,3147.3,3147.2,0.09466572]
[1738140805385,0.8093,3147.6,3146.9,0.7728]
[1738140805585,3.17698,3147.7,3147.2,0.09466572]
[1738140805792,3.17707,3147.6,3147.0,3.17755]
[1738140805987,3.17698,3147.7,3147.3,0.09466572]
[1738140806194,3.17716,3147.5,3147.0,3.17755]
[1738140806394,3.17716,3147.5,3147.4,0.09466572]
[1738140806569,3.17716,3147.5,3147.0,3.17755]
[1738140806769,3.17716,3147.5,3147.4,0.09466572]
[1738140806992,3.17716,3147.5,3147.0,3.17755]
[1738140807196,3.17716,3147.5,3147.4,0.09466572]
[1738140807396,3.80117801,3147.5,3147.0,3.17755]
[1738140807903,3.80117801,3147.5,3147.1,0.09466572]
[1738140808294,3.17716,3147.5,3147.1,0.09466572]
[1738140809504,6.35437,3147.5,3147.1,0.09466572]
[1738140809709,3.17742,3147.2,3147.1,0.09466572]
[1738140809907,0.8238,3147.3,3146.8,2.7e-06]
[1738140810094,3.17756,3147.1,3146.9,0.09466572]
[1738140810302,3.17756,3147.1,3146.8,2.7e-06]
[1738140810613,3.17756,3147.1,3146.9,0.09475927]
[1738140810996,3.17756,3147.1,3146.8,2.7e-06]
[1738140812201,3.17718,3147.5,3147.2,0.7689]
[1738140812382,3.17718,3147.5,3147.2,0.86365927]
[1738140812807,3.17724,3147.4,3147.2,0.86365927]
[1738140813111,3.17724,3147.4,3147.2,0.09475927]
[1738140813411,3.17724,3147.4,3147.0,0.8071]
[1738140813614,3.17724,3147.4,3147.3,0.09483456]
[1738140813789,3.17724,3147.4,3147.0,0.8071]
[1738140813990,3.17724,3147.4,3147.3,0.09483456]
[1738140814180,3.17724,3147.4,3147.0,0.8071]
[1738140814380,3.17724,3147.4,3147.3,0.09483456]
[1738140814605,3.17724,3147.4,3147.0,0.8071]
[1738140814820,3.17724,3147.4,3147.3,0.09483456]
[1738140815019,0.62726214,3147.6,3147.0,0.8071]
[1738140815216,3.17713,3147.5,3147.3,0.09483456]
[1738140815378,3.17713,3147.5,3147.0,3.98472]
[1738140815578,3.17713,3147.5,3147.4,0.09483456]
[1738140815787,3.17713,3147.5,3147.0,3.98472]
[1738140815997,6.35432,3147.5,3147.4,0.09473032]
[1738140816619,3.17723,3147.4,3147.0,3.98472]
[1738140816795,3.17723,3147.4,3147.0,0.8071]
[1738140817788,3.17736,3147.3,3147.0,0.8071]
[1738140819011,3.17736,3147.3,3147.1,0.09473032]
[1738140819623,3.17722,3147.4,3147.1,0.09473032]
[1738140820321,3.17713,3147.5,3147.1,0.09473032]
[1738140820619,0.62726214,3147.6,3147.1,4.05314535]
[1738140820822,3.80429214,3147.6,3147.1,4.05314535]
[1738140821812,3.17712,3147.5,3147.1,4.05314535]
[1738140822013,3.17712,3147.5,3147.1,0.87567535]
[1738140823925,3.17712,3147.5,3147.1,0.09473032]
[1738140825690,0.62726214,3147.6,3147.1,0.09473032]
[1738140825691,3.17742,3147.2,3147.1,0.09473032]